[Event "Turkish Cup 2024"]
[Site "Denizli"]
[Date "2024.08.02"]
[Round "5"]
[White "Ozdemir, Serhan Berat"]
[Black "Atik, Muhammed Ihsan"]
[Result "1-0"]
[ECO "A31"]
[WhiteElo "2194"]
[BlackElo "1788"]
[Annotator "RC"]
[PlyCount "55"]
[EventDate "2024.08.01"]
[EventType "swiss"]
[EventCountry "TUR"]
[SourceTitle "playchess.com"]
[Source "ChessBase"]
[SourceQuality "1"]
[TimeControl "5400+30"]

1. c4 {[%emt 0:07:00]} Nf6 {[%emt 0:01:00]} 2. Nc3 {[%emt 0:00:00]} c5 {[%emt 0:02:30]} 3. g3 {[%emt 0:00:00]} g6 {[%emt 0:00:30]} 4. Bg2 {[%emt 0:00:30]} Bg7 {[%emt 0:00:00]} 5. Nf3 {[%emt 0:00:30]} Nc6 {[%emt 0:00:00]} 6. O-O {[%emt 0:00:30]} d6 {[%emt 0:03:30]} 7. d4 {[%emt 0:03:30]} cxd4 {[%emt 0:02:30]} 8. Nxd4 {[%emt 0:00:00]} Bd7 {[%emt 0:04:30]} 9. Nc2 {[%emt 0:04:00]} Qc8 {[%emt 0:12:30]} 10. b3 {[%emt 0:06:30]} Bh3 {[%emt 0:01:30]} 11. Bb2 {[%emt 0:00:00]} h5 {[%emt 0:09:30]} 12. Nd5 {[%emt 0:13:00]} h4 {[%emt 0:05:30]} 13. Nxf6+ {[%emt 0:02:30]} exf6 {[%emt 0:00:00]} 14. Qd5 {[%emt 0:11:30]} Bxg2 {[%emt 0:06:00]} 15. Qxg2 {[%emt 0:00:00]} hxg3 {[%emt 0:01:30]} 16. hxg3 {[%emt 0:02:00]} Qe6 {[%emt 0:02:30]} 17. Rfd1 {[%emt 0:06:30]} O-O-O {[%emt 0:04:30]} 18. Ne3 {[%emt 0:06:30]} Rh3 {[%emt 0:02:30]} 19. c5 {[%emt 0:06:30]} dxc5 {[%emt 0:05:30]} 20. Rxd8+ {[%emt 0:00:00]} Kxd8 {[%emt 0:00:30]} 21. Rd1+ {[%emt 0:02:00]} Kc8 {[%emt 0:01:30]} 22. Nc4 {[%emt 0:00:30]} Bf8 {[%emt 0:00:30]} 23. Bxf6 {[%emt 0:10:57]} Rh5 {[%emt 0:00:30]} 24. g4 {[%emt 0:00:30]} Qxe2 {[%emt 0:00:30]} 25. Ne3 {[%emt 0:00:30]} Bh6 {[%emt 0:05:30]} 26. gxh5 {[%emt 0:02:25]} Bxe3 {[%emt 0:00:30]} 27. Qh3+ {[%emt 0:00:01]} Kb8 {[%emt 0:00:30]} 28. Rd8+ {[%emt 0:00:11]} 1-0

[Event "Turkish Cup 2024"]
[Site "Denizli"]
[Date "2024.08.02"]
[Round "5"]
[White "Uysal, Ugur"]
[Black "Kilic, Cihan"]
[Result "1-0"]
[ECO "A30"]
[WhiteElo "2114"]
[BlackElo "1869"]
[Annotator "RC"]
[PlyCount "107"]
[EventDate "2024.08.01"]
[EventType "swiss"]
[EventCountry "TUR"]
[SourceTitle "playchess.com"]
[Source "ChessBase"]
[SourceQuality "1"]
[TimeControl "5400+30"]

1. Nf3 {[%emt 0:01:00]} c5 {[%emt 0:01:00]} 2. c4 {[%emt 0:00:00]} Nf6 {[%emt 0:00:30]} 3. d4 {[%emt 0:01:00]} cxd4 {[%emt 0:00:30]} 4. Nxd4 {[%emt 0:00:30]} e6 {[%emt 0:00:00]} 5. g3 {[%emt 0:00:30]} a6 {[%emt 0:00:00]} 6. Bg2 {[%emt 0:00:30]} Qc7 {[%emt 0:00:30]} 7. O-O {[%emt 0:00:00]} Qxc4 {[%emt 0:05:30]} 8. e4 {[%emt 0:00:00]} Qc7 {[%emt 0:02:30]} 9. Nc3 {[%emt 0:00:30]} Nc6 {[%emt 0:01:30]} 10. Be3 {[%emt 0:01:30]} Be7 {[%emt 0:06:30]} 11. Rc1 {[%emt 0:00:00]} O-O {[%emt 0:07:30]} 12. g4 {[%emt 0:00:00]} d6 {[%emt 0:14:30]} 13. g5 {[%emt 0:06:30]} Nd7 {[%emt 0:00:30]} 14. Nd5 {[%emt 0:00:00]} Qd8 {[%emt 0:07:30]} 15. Nxc6 {[%emt 0:11:00]} bxc6 {[%emt 0:00:30]} 16. Nxe7+ {[%emt 0:00:30]} Qxe7 {[%emt 0:00:30]} 17. Rxc6 {[%emt 0:00:00]} Ne5 {[%emt 0:05:30]} 18. Rc2 {[%emt 0:00:00]} Bb7 {[%emt 0:01:30]} 19. f4 {[%emt 0:02:30]} Nd7 {[%emt 0:05:30]} 20. e5 {[%emt 0:04:30]} d5 {[%emt 0:02:30]} 21. Rc7 {[%emt 0:00:30]} Rfb8 {[%emt 0:01:30]} 22. Qa4 {[%emt 0:03:30]} Bc8 {[%emt 0:02:30]} 23. Rfc1 {[%emt 0:01:30]} Qd8 {[%emt 0:01:30]} 24. Qc6 {[%emt 0:19:30]} Nf8 {[%emt 0:02:30]} 25. Bc5 {[%emt 0:02:30]} Bd7 {[%emt 0:09:30]} 26. Qd6 {[%emt 0:00:30]} Rc8 {[%emt 0:03:45]} 27. Bb6 {[%emt 0:03:30]} Rxc7 {[%emt 0:02:14]} 28. Rxc7 {[%emt 0:01:30]} Qe8 {[%emt 0:01:34]} 29. b3 {[%emt 0:00:30]} Rc8 {[%emt 0:05:50]} 30. Kf2 {[%emt 0:05:30]} Rxc7 {[%emt 0:00:49]} 31. Qxc7 {[%emt 0:00:00]} Ng6 {[%emt 0:01:00]} 32. Ke3 {[%emt 0:00:00]} Ne7 {[%emt 0:03:01]} 33. Qd8 {[%emt 0:02:30]} Nf5+ {[%emt 0:05:39]} 34. Kd2 {[%emt 0:00:30]} Qxd8 {[%emt 0:00:17]} 35. Bxd8 {[%emt 0:00:30]} Kf8 {[%emt 0:00:00]} 36. a4 {[%emt 0:00:30]} Nd4 {[%emt 0:00:51]} 37. Kc3 {[%emt 0:15:30]} Ne2+ {[%emt 0:00:30]} 38. Kb4 {[%emt 0:00:00]} Nxf4 {[%emt 0:00:37]} 39. Bf1 {[%emt 0:00:00]} Bc8 {[%emt 0:00:21]} 40. Ka5 {[%emt 0:00:00]} d4 {[%emt 0:01:10]} 41. Bb6 {[%emt 0:00:00]} d3 {[%emt 0:00:00]} 42. Be3 {[%emt 0:00:30]} Ne2 {[%emt 0:00:25]} 43. Kb6 {[%emt 0:04:37]} Ke8 {[%emt 0:00:30]} 44. Kc7 {[%emt 0:00:30]} Bd7 {[%emt 0:00:00]} 45. Kb7 {[%emt 0:00:25]} a5 {[%emt 0:01:29]} 46. Bxe2 {[%emt 0:06:44]} dxe2 {[%emt 0:00:30]} 47. Bd2 {[%emt 0:00:00]} f6 {[%emt 0:00:44]} 48. gxf6 {[%emt 0:02:09]} gxf6 {[%emt 0:00:02]} 49. Bxa5 {[%emt 0:00:26]} fxe5 {[%emt 0:00:40]} 50. Be1 {[%emt 0:00:20]} e4 {[%emt 0:01:11]} 51. a5 {[%emt 0:00:30]} Bb5 {[%emt 0:00:00]} 52. a6 {[%emt 0:00:11]} Kd7 {[%emt 0:00:11]} 53. a7 {[%emt 0:00:00]} Bc6+ {[%emt 0:00:18]} 54. Kb8 {[%emt 0:00:00]} 1-0

[Event "Turkish Cup 2024"]
[Site "Denizli"]
[Date "2024.08.02"]
[Round "5"]
[White "Cevizci, Yusuf Baran"]
[Black "Ucar, Umut Can"]
[Result "1-0"]
[ECO "C50"]
[WhiteElo "2102"]
[BlackElo "1684"]
[Annotator "RC"]
[PlyCount "81"]
[EventDate "2024.08.01"]
[EventType "swiss"]
[EventCountry "TUR"]
[SourceTitle "playchess.com"]
[Source "ChessBase"]
[SourceQuality "1"]
[TimeControl "5400+30"]

1. e4 {[%emt 0:05:00]} e5 {[%emt 0:01:00]} 2. Nf3 {[%emt 0:00:30]} Nc6 {[%emt 0:00:00]} 3. Nc3 {[%emt 0:01:30]} Nf6 {[%emt 0:00:00]} 4. h3 {[%emt 0:00:00]} Be7 {[%emt 0:00:30]} 5. d4 {[%emt 0:00:00]} exd4 {[%emt 0:00:30]} 6. Nxd4 {[%emt 0:00:00]} Nxd4 {[%emt 0:01:30]} 7. Qxd4 {[%emt 0:00:00]} d6 {[%emt 0:00:00]} 8. Bc4 {[%emt 0:03:30]} O-O {[%emt 0:01:00]} 9. O-O {[%emt 0:00:00]} Be6 {[%emt 0:00:00]} 10. Bxe6 {[%emt 0:02:00]} fxe6 {[%emt 0:00:00]} 11. e5 {[%emt 0:00:30]} Nd7 {[%emt 0:04:30]} 12. exd6 {[%emt 0:03:30]} Bxd6 {[%emt 0:00:00]} 13. Qg4 {[%emt 0:00:30]} Qf6 {[%emt 0:08:00]} 14. Ne4 {[%emt 0:00:30]} Qf5 {[%emt 0:02:30]} 15. Nxd6 {[%emt 0:00:30]} Qxg4 {[%emt 0:00:00]} 16. hxg4 {[%emt 0:00:30]} cxd6 {[%emt 0:00:00]} 17. b3 {[%emt 0:01:30]} Rac8 {[%emt 0:00:30]} 18. c4 {[%emt 0:00:30]} d5 {[%emt 0:00:00]} 19. cxd5 {[%emt 0:02:30]} exd5 {[%emt 0:00:00]} 20. Be3 {[%emt 0:00:00]} a6 {[%emt 0:18:30]} 21. Rad1 {[%emt 0:01:00]} Rc2 {[%emt 0:03:30]} 22. Rxd5 {[%emt 0:02:30]} Nf6 {[%emt 0:00:30]} 23. Rd4 {[%emt 0:00:00]} h6 {[%emt 0:07:30]} 24. a4 {[%emt 0:00:00]} Rfc8 {[%emt 0:01:30]} 25. Rfd1 {[%emt 0:03:30]} R2c3 {[%emt 0:02:30]} 26. Rb4 {[%emt 0:01:30]} R8c7 {[%emt 0:03:30]} 27. Rd6 {[%emt 0:03:30]} Kf7 {[%emt 0:07:30]} 28. g5 {[%emt 0:04:30]} hxg5 {[%emt 0:00:30]} 29. Bxg5 {[%emt 0:00:00]} a5 {[%emt 0:11:30]} 30. Rf4 {[%emt 0:03:00]} Rxb3 {[%emt 0:01:30]} 31. Bxf6 {[%emt 0:00:30]} gxf6 {[%emt 0:00:00]} 32. Rdxf6+ {[%emt 0:00:00]} Kg7 {[%emt 0:01:00]} 33. R6f5 {[%emt 0:00:00]} b6 {[%emt 0:02:30]} 34. Rg4+ {[%emt 0:03:30]} Kh6 {[%emt 0:00:00]} 35. Rf6+ {[%emt 0:01:30]} Kh5 {[%emt 0:00:00]} 36. Rfg6 {[%emt 0:01:30]} Rc5 {[%emt 0:01:30]} 37. g3 {[%emt 0:00:30]} Rb4 {[%emt 0:00:30]} 38. Rxb4 {[%emt 0:00:30]} axb4 {[%emt 0:00:30]} 39. Rxb6 {[%emt 0:00:00]} Rc4 {[%emt 0:00:30]} 40. Rb5+ {[%emt 0:00:00]} Kg4 {[%emt 0:00:00]} 41. Kg2 {[%emt 0:00:00]} 1-0

[Event "Turkish Cup 2024"]
[Site "Denizli"]
[Date "2024.08.02"]
[Round "5"]
[White "Kavri, Yusuf Eren"]
[Black "Asikoglu, Engin Can"]
[Result "1-0"]
[ECO "D59"]
[WhiteElo "2090"]
[BlackElo "1843"]
[Annotator "RC"]
[PlyCount "71"]
[EventDate "2024.08.01"]
[EventType "swiss"]
[EventCountry "TUR"]
[SourceTitle "playchess.com"]
[Source "ChessBase"]
[SourceQuality "1"]
[TimeControl "5400+30"]

1. d4 {[%emt 0:02:00]} d5 {[%emt 0:01:00]} 2. c4 {[%emt 0:00:30]} e6 {[%emt 0:00:30]} 3. Nc3 {[%emt 0:00:30]} Nf6 {[%emt 0:00:00]} 4. Bg5 {[%emt 0:00:00]} Be7 {[%emt 0:00:00]} 5. Nf3 {[%emt 0:00:00]} O-O {[%emt 0:00:00]} 6. e3 {[%emt 0:00:00]} h6 {[%emt 0:00:00]} 7. Bh4 {[%emt 0:00:00]} b6 {[%emt 0:00:30]} 8. cxd5 {[%emt 0:00:30]} Nxd5 {[%emt 0:01:30]} 9. Bxe7 {[%emt 0:00:30]} Qxe7 {[%emt 0:00:30]} 10. Nxd5 {[%emt 0:02:30]} exd5 {[%emt 0:00:30]} 11. Be2 {[%emt 0:00:30]} Be6 {[%emt 0:03:30]} 12. O-O {[%emt 0:00:30]} c5 {[%emt 0:01:30]} 13. dxc5 {[%emt 0:00:30]} bxc5 {[%emt 0:00:30]} 14. Rc1 {[%emt 0:03:30]} Nd7 {[%emt 0:00:30]} 15. Qa4 {[%emt 0:03:30]} Rfc8 {[%emt 0:03:30]} 16. Rfd1 {[%emt 0:01:30]} Rc7 {[%emt 0:10:30]} 17. Qa5 {[%emt 0:04:30]} Nb6 {[%emt 0:00:30]} 18. Rc3 {[%emt 0:04:30]} c4 {[%emt 0:04:30]} 19. Nd4 {[%emt 0:03:30]} Rac8 {[%emt 0:08:30]} 20. Rdc1 {[%emt 0:02:30]} Nd7 {[%emt 0:12:30]} 21. b3 {[%emt 0:09:30]} Ne5 {[%emt 0:00:00]} 22. bxc4 {[%emt 0:05:30]} Nxc4 {[%emt 0:00:00]} 23. Qa6 {[%emt 0:02:30]} Rc5 {[%emt 0:04:30]} 24. Bxc4 {[%emt 0:11:30]} dxc4 {[%emt 0:01:30]} 25. Nxe6 {[%emt 0:00:30]} Qxe6 {[%emt 0:04:30]} 26. Qxa7 {[%emt 0:00:30]} Rd5 {[%emt 0:03:30]} 27. h3 {[%emt 0:18:30]} Rcd8 {[%emt 0:01:30]} 28. Qa4 {[%emt 0:01:30]} Rg5 {[%emt 0:01:30]} 29. Qxc4 {[%emt 0:02:30]} Qxh3 {[%emt 0:01:30]} 30. Qe4 {[%emt 0:00:30]} f5 {[%emt 0:00:30]} 31. Qb7 {[%emt 0:02:47]} Kh7 {[%emt 0:06:30]} 32. Rc8 {[%emt 0:02:53]} Rd6 {[%emt 0:11:49]} 33. Qa8 {[%emt 0:00:24]} Re6 {[%emt 0:00:04]} 34. Rh8+ {[%emt 0:09:36]} Kg6 {[%emt 0:00:04]} 35. Qd5 f4 {[%emt 0:02:01]} 36. Qxg5+ {[%emt 0:00:42]} 1-0

[Event "Turkish Cup 2024"]
[Site "Denizli"]
[Date "2024.08.02"]
[Round "5"]
[White "Turgut, Hakan"]
[Black "Kapusuz, Hasan Huseyin"]
[Result "1-0"]
[ECO "A13"]
[WhiteElo "2052"]
[BlackElo "1767"]
[Annotator "RC"]
[PlyCount "43"]
[EventDate "2024.08.01"]
[EventType "swiss"]
[EventCountry "TUR"]
[SourceTitle "playchess.com"]
[Source "ChessBase"]
[SourceQuality "1"]
[TimeControl "5400+30"]

1. d4 {[%emt 0:04:00]} Nf6 {[%emt 0:02:00]} 2. g3 {[%emt 0:00:00]} d5 {[%emt 0:02:30]} 3. Bg2 {[%emt 0:00:00]} e6 {[%emt 0:04:30]} 4. Nf3 {[%emt 0:00:30]} Bd6 {[%emt 0:01:30]} 5. O-O {[%emt 0:03:30]} O-O {[%emt 0:00:00]} 6. c4 {[%emt 0:00:30]} dxc4 {[%emt 0:05:00]} 7. Qc2 {[%emt 0:03:30]} Nbd7 {[%emt 0:04:30]} 8. Qxc4 {[%emt 0:06:30]} e5 {[%emt 0:00:30]} 9. Nc3 {[%emt 0:03:30]} exd4 {[%emt 0:06:30]} 10. Nxd4 {[%emt 0:06:30]} Ne5 {[%emt 0:02:30]} 11. Qa4 {[%emt 0:03:30]} c6 {[%emt 0:05:30]} 12. Rd1 {[%emt 0:01:30]} Qb6 {[%emt 0:03:30]} 13. Nxc6 {[%emt 0:10:30]} Neg4 {[%emt 0:07:30]} 14. Nd4 {[%emt 0:15:30]} Bc5 {[%emt 0:06:30]} 15. e3 {[%emt 0:04:30]} Ne5 {[%emt 0:12:30]} 16. h3 {[%emt 0:02:30]} Rd8 {[%emt 0:07:30]} 17. Qc2 {[%emt 0:07:30]} Bxd4 {[%emt 0:03:30]} 18. exd4 {[%emt 0:00:30]} Rxd4 {[%emt 0:00:30]} 19. Be3 {[%emt 0:00:00]} Rxd1+ {[%emt 0:01:30]} 20. Rxd1 {[%emt 0:00:00]} Qc7 {[%emt 0:01:30]} 21. Nb5 {[%emt 0:00:30]} Qe7 {[%emt 0:00:30]} 22. Bc5 {[%emt 0:00:30]} 1-0

[Event "Turkish Cup 2024"]
[Site "Denizli"]
[Date "2024.08.02"]
[Round "5"]
[White "Tutuncu, Ali"]
[Black "Topuz, Mirac Melih"]
[Result "0-1"]
[ECO "C70"]
[WhiteElo "2041"]
[BlackElo "2148"]
[Annotator "RC"]
[PlyCount "29"]
[EventDate "2024.08.01"]
[EventType "swiss"]
[EventCountry "TUR"]
[SourceTitle "playchess.com"]
[Source "ChessBase"]
[SourceQuality "1"]
[TimeControl "5400+30"]

1. e4 {[%emt 0:01:00]} e5 {[%emt 0:10:00]} 2. Nf3 {[%emt 0:00:30]} Nc6 {[%emt 0:00:30]} 3. Bb5 {[%emt 0:00:30]} a6 {[%emt 0:00:30]} 4. Ba4 {[%emt 0:00:30]} f5 {[%emt 0:00:00]} 5. d4 {[%emt 0:00:00]} exd4 {[%emt 0:00:00]} 6. O-O {[%emt 0:00:00]} b5 {[%emt 0:00:00]} 7. Bb3 {[%emt 0:01:30]} fxe4 {[%emt 0:03:00]} 8. Ne5 {[%emt 0:13:30]} Nxe5 {[%emt 0:57:30]} 9. Qh5+ {[%emt 0:00:30]} Ng6 {[%emt 0:00:30]} 10. Qd5 {[%emt 0:00:00]} Qe7 {[%emt 0:01:30]} 11. Bg5 {[%emt 0:01:00]} c6 {[%emt 0:01:30]} 12. Qxd4 {[%emt 0:12:30]} Qxg5 {[%emt 0:00:30]} 13. Re1 {[%emt 0:00:30]} Nf6 {[%emt 0:00:30]} 14. Nc3 {[%emt 0:00:30]} Nh4 {[%emt 0:01:33]} 15. Rxe4+ {[%emt 0:01:30]} 0-1

[Event "Turkish Cup 2024"]
[Site "Denizli"]
[Date "2024.08.02"]
[Round "5"]
[White "Yilmaz, Kerem Tuna"]
[Black "Turan, Seyithan"]
[Result "1-0"]
[ECO "B31"]
[WhiteElo "2025"]
[BlackElo "1764"]
[Annotator "RC"]
[PlyCount "67"]
[EventDate "2024.08.01"]
[EventType "swiss"]
[EventCountry "TUR"]
[SourceTitle "playchess.com"]
[Source "ChessBase"]
[SourceQuality "1"]
[TimeControl "5400+30"]

1. e4 {[%emt 0:05:00]} c5 {[%emt 0:01:00]} 2. Nf3 {[%emt 0:01:30]} Nc6 {[%emt 0:00:30]} 3. Bb5 {[%emt 0:00:30]} g6 {[%emt 0:00:00]} 4. Bxc6 {[%emt 0:00:00]} dxc6 {[%emt 0:00:00]} 5. h3 {[%emt 0:00:00]} Bg7 {[%emt 0:00:00]} 6. d3 {[%emt 0:00:00]} Qc7 {[%emt 0:00:00]} 7. Nbd2 {[%emt 0:02:00]} e5 {[%emt 0:00:30]} 8. O-O {[%emt 0:11:30]} Nh6 {[%emt 0:01:30]} 9. a4 {[%emt 0:02:30]} a5 {[%emt 0:00:30]} 10. Nc4 {[%emt 0:00:30]} f6 {[%emt 0:01:30]} 11. Be3 {[%emt 0:00:30]} b6 {[%emt 0:00:30]} 12. b4 {[%emt 0:01:30]} axb4 {[%emt 0:09:30]} 13. a5 {[%emt 0:00:00]} bxa5 {[%emt 0:01:30]} 14. Bxc5 {[%emt 0:00:00]} Nf7 {[%emt 0:06:30]} 15. Bxb4 {[%emt 0:01:30]} a4 {[%emt 0:10:30]} 16. Bc5 {[%emt 0:09:30]} Be6 {[%emt 0:03:30]} 17. Nb6 {[%emt 0:01:30]} Rb8 {[%emt 0:05:30]} 18. Nxa4 {[%emt 0:02:30]} g5 {[%emt 0:02:30]} 19. Nh2 {[%emt 0:12:30]} h5 {[%emt 0:01:30]} 20. Rb1 {[%emt 0:01:30]} g4 {[%emt 0:06:30]} 21. Rxb8+ {[%emt 0:04:30]} Qxb8 {[%emt 0:00:30]} 22. h4 {[%emt 0:00:00]} Nh6 {[%emt 0:09:30]} 23. Qb1 {[%emt 0:03:00]} Kf7 {[%emt 0:02:30]} 24. Qa1 {[%emt 0:07:30]} f5 {[%emt 0:04:30]} 25. Rb1 {[%emt 0:03:30]} Qd8 {[%emt 0:00:30]} 26. Rb7+ {[%emt 0:00:30]} Kg6 {[%emt 0:01:30]} 27. Nf1 {[%emt 0:04:30]} Qxh4 {[%emt 0:02:30]} 28. Rxg7+ {[%emt 0:00:30]} Kxg7 {[%emt 0:00:30]} 29. Qxe5+ {[%emt 0:00:30]} Qf6 {[%emt 0:00:30]} 30. Qxf6+ {[%emt 0:00:30]} Kxf6 {[%emt 0:00:30]} 31. Bd4+ {[%emt 0:00:30]} Kg5 {[%emt 0:00:30]} 32. Bxh8 {[%emt 0:00:30]} f4 {[%emt 0:00:30]} 33. Nc5 {[%emt 0:00:30]} Ba2 {[%emt 0:00:30]} 34. Nd2 {[%emt 0:00:30]} 1-0

[Event "Turkish Cup 2024"]
[Site "Denizli"]
[Date "2024.08.02"]
[Round "5"]
[White "Turkmen, Ataberk"]
[Black "Akyuz, Murat"]
[Result "1/2-1/2"]
[ECO "B26"]
[WhiteElo "2022"]
[BlackElo "1890"]
[Annotator "RC"]
[PlyCount "160"]
[EventDate "2024.08.01"]
[EventType "swiss"]
[EventCountry "TUR"]
[SourceTitle "playchess.com"]
[Source "ChessBase"]
[SourceQuality "1"]
[TimeControl "5400+30"]

1. e4 {[%emt 0:03:00]} c5 {[%emt 0:01:00]} 2. Nc3 {[%emt 0:00:00]} e6 {[%emt 0:00:30]} 3. g3 {[%emt 0:00:00]} Nc6 {[%emt 0:00:30]} 4. Bg2 {[%emt 0:00:30]} g6 {[%emt 0:00:30]} 5. d3 {[%emt 0:00:30]} Bg7 {[%emt 0:00:00]} 6. Be3 {[%emt 0:00:00]} d6 {[%emt 0:00:00]} 7. Qd2 {[%emt 0:00:00]} Nge7 {[%emt 0:01:30]} 8. Bh6 {[%emt 0:00:30]} Bxh6 {[%emt 0:05:30]} 9. Qxh6 {[%emt 0:00:30]} Nd4 {[%emt 0:00:00]} 10. O-O-O {[%emt 0:09:30]} Nec6 {[%emt 0:07:00]} 11. Nge2 {[%emt 0:10:30]} Nxe2+ {[%emt 0:09:30]} 12. Nxe2 {[%emt 0:02:30]} Qf6 {[%emt 0:01:30]} 13. Qe3 {[%emt 0:03:30]} e5 {[%emt 0:07:30]} 14. f4 {[%emt 0:00:30]} Bg4 {[%emt 0:01:30]} 15. fxe5 {[%emt 0:08:30]} Qxe5 {[%emt 0:03:30]} 16. Rdf1 {[%emt 0:07:30]} Bxe2 {[%emt 0:07:30]} 17. Qxe2 {[%emt 0:00:30]} O-O {[%emt 0:00:30]} 18. Qg4 {[%emt 0:09:30]} Nd4 {[%emt 0:07:30]} 19. c3 {[%emt 0:02:30]} Nc6 {[%emt 0:08:30]} 20. Qf4 {[%emt 0:01:30]} Kg7 {[%emt 0:02:30]} 21. Qxe5+ {[%emt 0:18:30]} dxe5 {[%emt 0:00:30]} 22. Kd2 {[%emt 0:00:30]} Rad8 {[%emt 0:00:30]} 23. Ke3 {[%emt 0:00:30]} Rd6 {[%emt 0:00:30]} 24. Rd1 {[%emt 0:00:00]} Rfd8 {[%emt 0:00:30]} 25. Rd2 {[%emt 0:00:00]} b5 {[%emt 0:03:30]} 26. Bf3 {[%emt 0:00:30]} b4 {[%emt 0:00:30]} 27. Bd1 {[%emt 0:00:30]} c4 {[%emt 0:05:30]} 28. Be2 {[%emt 0:02:30]} bxc3 {[%emt 0:06:44]} 29. bxc3 {[%emt 0:00:00]} f5 {[%emt 0:02:19]} 30. Rhd1 {[%emt 0:01:00]} cxd3 {[%emt 0:10:21]} 31. Rxd3 {[%emt 0:00:30]} Rxd3+ {[%emt 0:00:49]} 32. Rxd3 {[%emt 0:00:00]} Rxd3+ {[%emt 0:00:08]} 33. Bxd3 {[%emt 0:04:39]} Kf6 {[%emt 0:00:13]} 34. c4 {[%emt 0:03:25]} h6 {[%emt 0:01:04]} 35. c5 {[%emt 0:00:12]} Ke6 {[%emt 0:01:18]} 36. h4 {[%emt 0:09:36]} Ne7 {[%emt 0:03:22]} 37. h5 {[%emt 0:03:57]} fxe4 {[%emt 0:01:57]} 38. Kxe4 {[%emt 0:00:12]} gxh5 {[%emt 0:00:59]} 39. Bf1 {[%emt 0:01:03]} Kd7 {[%emt 0:01:36]} 40. Bb5+ {[%emt 0:00:43]} Ke6 {[%emt 0:00:35]} 41. Bc4+ {[%emt 0:00:39]} Kf6 {[%emt 0:01:01]} 42. Be2 {[%emt 0:00:30]} h4 {[%emt 0:00:30]} 43. gxh4 {[%emt 0:00:30]} Nc6 {[%emt 0:00:09]} 44. Bb5 {[%emt 0:00:38]} Nd4 {[%emt 0:00:07]} 45. Bc4 {[%emt 0:00:00]} Nf5 {[%emt 0:00:39]} 46. c6 {[%emt 0:01:06]} Nd6+ {[%emt 0:00:10]} 47. Kd5 {[%emt 0:00:00]} Nxc4 {[%emt 0:00:52]} 48. Kxc4 {[%emt 0:00:13]} Ke6 {[%emt 0:00:30]} 49. Kc5 {[%emt 0:00:00]} h5 {[%emt 0:00:00]} 50. c7 {[%emt 0:00:47]} Kd7 {[%emt 0:00:30]} 51. Kd5 {[%emt 0:00:00]} Kxc7 {[%emt 0:00:00]} 52. Kxe5 {[%emt 0:00:10]} Kc6 {[%emt 0:00:11]} 53. Kf5 {[%emt 0:00:30]} Kd5 {[%emt 0:00:00]} 54. Kg5 {[%emt 0:00:00]} Ke5 {[%emt 0:00:00]} 55. Kxh5 {[%emt 0:00:19]} Kf5 {[%emt 0:00:00]} 56. Kh6 {[%emt 0:00:30]} Kf6 {[%emt 0:00:00]} 57. h5 {[%emt 0:00:00]} a6 {[%emt 0:00:43]} 58. a3 {[%emt 0:03:32]} a5 {[%emt 0:00:07]} 59. a4 {[%emt 0:00:00]} Kf7 {[%emt 0:00:30]} 60. Kh7 {[%emt 0:00:38]} Kf6 {[%emt 0:01:00]} 61. Kh6 {[%emt 0:00:30]} Kf7 {[%emt 0:00:00]} 62. Kg5 {[%emt 0:00:34]} Kg7 {[%emt 0:00:37]} 63. Kf4 {[%emt 0:00:44]} Kh6 {[%emt 0:00:30]} 64. Kg4 {[%emt 0:00:00]} Kh7 {[%emt 0:00:11]} 65. Kg3 {[%emt 0:00:43]} Kg7 {[%emt 0:00:28]} 66. Kg4 {[%emt 0:00:46]} Kh6 {[%emt 0:00:30]} 67. Kh4 {[%emt 0:00:00]} Kh7 {[%emt 0:00:11]} 68. Kg5 {[%emt 0:00:12]} Kg7 {[%emt 0:00:00]} 69. h6+ {[%emt 0:00:08]} Kh7 {[%emt 0:00:53]} 70. Kh5 {[%emt 0:00:30]} Kh8 {[%emt 0:00:00]} 71. Kg6 {[%emt 0:00:00]} Kg8 {[%emt 0:00:00]} 72. Kf6 {[%emt 0:00:15]} Kh7 {[%emt 0:00:00]} 73. Ke5 {[%emt 0:02:00]} Kxh6 {[%emt 0:00:00]} 74. Kd5 {[%emt 0:00:00]} Kg6 {[%emt 0:01:30]} 75. Kc6 {[%emt 0:00:08]} Kf6 {[%emt 0:00:43]} 76. Kb5 {[%emt 0:00:08]} Ke6 {[%emt 0:02:03]} 77. Kxa5 {[%emt 0:00:15]} Kd7 {[%emt 0:00:29]} 78. Kb6 {[%emt 0:00:08]} Kc8 {[%emt 0:00:15]} 79. Ka7 {[%emt 0:00:09]} Kc7 {[%emt 0:00:00]} 80. a5 {[%emt 0:00:15]} Kc8 {[%emt 0:00:13]} 1/2-1/2

[Event "Turkish Cup 2024"]
[Site "Denizli"]
[Date "2024.08.02"]
[Round "5"]
[White "Manas, Eren"]
[Black "Metin, Enis"]
[Result "1-0"]
[ECO "B43"]
[WhiteElo "2013"]
[BlackElo "2142"]
[Annotator "RC"]
[PlyCount "118"]
[EventDate "2024.08.01"]
[EventType "swiss"]
[EventCountry "TUR"]
[SourceTitle "playchess.com"]
[Source "ChessBase"]
[SourceQuality "1"]
[TimeControl "5400+30"]

1. e4 c5 2. Nf3 e6 3. d4 cxd4 4. Nxd4 a6 5. Nc3 Qc7 6. g3 Bb4 7. Bd2 Nf6 8. Bg2 Nc6 9. Nb3 Be7 10. O-O d6 11. f4 b5 12. a3 Nd7 13. Be3 Nb6 14. Qg4 g6 15. Rae1 Nc4 16. Bc1 h5 17. Qe2 h4 18. g4 h3 19. Bf3 g5 20. Nd5 Qa7+ 21. Kh1 gxf4 22. Nxe7 Qxe7 23. Bxf4 Bb7 24. a4 N6e5 25. axb5 axb5 26. Nd4 Nxf3 27. Rxf3 d5 28. e5 Qc5 29. Qf2 Nxb2 30. Bc1 Nc4 31. Rxf7 O-O-O 32. g5 Rhg8 33. Be3 Nxe5 34. Rxb7 Kxb7 35. Nxe6 Qd6 36. Nxd8+ Rxd8 37. Bf4 Ng4 38. Qg3 Qd7 39. Rf1 Rf8 40. Kg1 Qf5 41. Qxh3 Rc8 42. Qd3 Qd7 43. h3 Rc4 44. hxg4 Qxg4+ 45. Bg3 Qxg5 46. Kg2 Kc6 47. Rf5 Qd8 48. Rf7 Qg5 49. Ra7 Qg4 50. Ra6+ Kb7 51. Rd6 Rc5 52. Rxd5 Qc8 53. Rd7+ Kb6 54. Qd6+ Qc6+ 55. Qxc6+ Rxc6 56. Rd6 b4 57. Kf3 Rxd6 58. Bxd6 Kb5 59. Ke4 Kc4 1-0